fUSD/lending_fUSD_20240628
["ID","MTS","AMOUNT","RATE_DAILY","PERIOD"]
[330535147,1719561032410,-2730.39769668,0.000139,2]
[330535148,1719561032419,-189.32465771,0.000139,2]
[330535149,1719561032428,-315.21602777,0.000139,2]
[330535150,1719561032440,-1784.65181618,0.000139,2]
[330535151,1719561032449,-4175.88973429,0.000139,2]
[330535152,1719561032459,-150.0,0.00013945,2]
[330535153,1719561032468,-193.2637923,0.0001398,2]
[330535154,1719561032477,-499.99,0.0001398,2]
[330535155,1719561032486,-3239.34509761,0.0001399,2]
[330535156,1719561032495,-741.84513559,0.0001399,2]
[330535157,1719561032504,-21273.88842882,0.00013999,2]
[330535158,1719561032514,-268644.67546157,0.00014,2]
[330535159,1719561032530,-15563.32493714,0.00014,2]
[330535161,1719561032627,-716.74354502,0.00014,2]
[330535170,1719561038352,-3786.96483983,0.00014,2]
[330535171,1719561038519,-3090.6189,0.00014,2]
[330535228,1719561043267,-538266.71151897,0.00014,2]
[330535245,1719561043484,-614.95207445,0.00014,2]
[330535248,1719561045442,-2687833.88738495,0.00014,2]
[330535249,1719561045453,-150.0,0.00014,2]
[330535250,1719561045463,-30014.61,0.0001408,2]
[330535251,1719561045473,-175.62575415,0.0001418,2]
[330535252,1719561045482,-1394.94,0.0001458,2]
[330535253,1719561045491,-4175.88973428,0.00014627,2]
[330535254,1719561045501,-2730.39769668,0.00014718,2]
[330535255,1719561045511,-452.17,0.00014724,5]
[330535256,1719561045520,-2703.77,0.000148,2]
[330535257,1719561045530,-306.0,0.00014852,2]
[330535258,1719561045539,-200.0,0.00014877,2]
[330535259,1719561045548,-1117.29,0.000149,2]
[330535260,1719561045558,-210.0,0.00015244,2]
[330535261,1719561045567,-200.0,0.00015307,2]
[330535262,1719561045577,-4175.88973428,0.00015355,2]
[330535263,1719561045586,-414.4,0.00015444,2]
[330535264,1719561045596,-414.4,0.00015486,2]
[330535265,1719561045605,-414.4,0.00015528,2]
[330535266,1719561045615,-2730.39769668,0.00015536,2]
[330535267,1719561045624,-414.4,0.00015571,2]
[330535268,1719561045633,-414.4,0.00015613,2]
[330535269,1719561045643,-23900.0,0.00015644,2]
[330535270,1719561045653,-414.4,0.00015655,2]
[330535271,1719561045662,-414.4,0.00015698,2]
[330535272,1719561045671,-586.74,0.00015722,2]
[330535273,1719561045681,-250.0,0.00015728,2]
[330535274,1719561045691,-414.4,0.0001574,2]
[330535275,1719561045703,-500.0,0.00015766,2]
[330535276,1719561045713,-414.4,0.00015782,2]
[330535277,1719561045723,-3311.49,0.00015792,2]
[330535278,1719561045733,-414.4,0.00015825,2]
[330535279,1719561045742,-796.8,0.00015828,2]
[330535280,1719561045753,-414.4,0.00015867,2]
[330535281,1719561045763,-150.0,0.00015874,2]
[330535282,1719561045774,-250.0,0.00015892,2]
[330535283,1719561045784,-295.25,0.000159,2]
[330535284,1719561045793,-414.4,0.00015909,2]
[330535285,1719561045804,-414.4,0.00015952,2]
[330535286,1719561045813,-414.4,0.00015994,2]
[330535287,1719561045827,-926.86,0.0001601,2]
[330535288,1719561045836,-414.4,0.00016037,2]
[330535289,1719561045846,-414.4,0.00016079,2]
[330535290,1719561045856,-4175.88973428,0.00016082,2]
[330535291,1719561045866,-414.4,0.00016121,2]
[330535292,1719561045879,-7227.12,0.00016138,2]
[330535293,1719561045889,-414.4,0.00016164,2]
[330535294,1719561045899,-24695.81662037,0.00016172,2]
[330535295,1719561045910,-414.4,0.00016206,2]
[330535296,1719561045920,-414.4,0.00016248,2]
[330535297,1719561045929,-2730.39769668,0.00016354,2]
[330535298,1719561045940,-166.84,0.00016377,2]
[330535299,1719561045952,-1000.0,0.00016498,2]
[330535300,1719561045962,-172.81,0.00016515,2]
[330535301,1719561045972,-293.0,0.00016718,2]
[330535302,1719561045983,-7440.55474261,0.00016808,2]
[330535303,1719561045993,-239.21,0.00016847,2]
[330535304,1719561046003,-2798.1186873,0.000169,2]
[330535305,1719561046012,-1784.65181616,0.000169,2]
[330535306,1719561046023,-983.96,0.00016986,3]
[330535307,1719561046033,-2491.01847886,0.00017,2]
[330535308,1719561046042,-225.42,0.00017082,2]
[330535309,1719561046052,-150.09,0.00017171,2]
[330535310,1719561046061,-2730.39769668,0.00017172,2]
[330535311,1719561046071,-3966.84701844,0.00017259,2]
[330535312,1719561046080,-1270.0,0.00017311,2]
[330535313,1719561046090,-1650.0,0.00017311,2]
[330535314,1719561046099,-1820.0,0.00017311,2]
[330535316,1719561046109,-618.0,0.00017311,2]
[330535317,1719561046119,-165.906,0.00017311,2]
[330535318,1719561046128,-448.0,0.00017311,2]
[330535319,1719561046139,-443.0,0.00017311,2]
[330535320,1719561046148,-2827.8,0.00017311,2]
[330535321,1719561046159,-1977.0,0.00017311,2]
[330535322,1719561046170,-545.0,0.00017311,2]
[330535323,1719561046179,-38194.0,0.00017311,2]
[330535324,1719561046189,-1662.0,0.00017311,2]
[330535325,1719561046200,-1195.54,0.00017311,2]
[330535326,1719561046209,-291.0,0.00017311,2]
[330535327,1719561046526,-5172.0,0.00017311,2]
[330535328,1719561046537,-393.02,0.00017311,2]
[330535329,1719561046547,-2798.1186873,0.00017322,2]
[330535330,1719561046557,-239.21,0.00017689,2]
[330535331,1719561046566,-168.51,0.00017708,2]
[330535332,1719561046575,-166.84,0.00017729,2]
[330535333,1719561046586,-2798.1186873,0.00017744,2]
[330535334,1719561046595,-155.0,0.00017829,2]
[330535335,1719561046604,-586.74,0.00017986,2]
[330535336,1719561046614,-2730.39769668,0.0001799,2]
[330535337,1719561046623,-692.0,0.00017991,2]
[330535338,1719561046633,-162277.88127399,0.00018,3]
[330535339,1719561046643,-170.0,0.00018,2]
[330535340,1719561046657,-926.86,0.00018011,2]
[330535341,1719561046666,-2798.1186873,0.00018166,2]
[330535342,1719561046676,-1603.74,0.00018175,2]
[330535343,1719561046685,-411.0,0.00018336,2]
[330535344,1719561046696,-3105.79028967,0.00018432,2]
[330535345,1719561046706,-239.21,0.00018532,2]
[330535346,1719561046716,-1000.0,0.0001856,2]
[330535347,1719561046725,-2798.1186873,0.00018588,2]
[330535348,1719561046735,-2730.39769668,0.00018808,2]
[330535349,1719561046745,-2374.53515352,0.00018835,2]
[330535350,1719561046756,-1820.3262,0.00018869,2]
[330535351,1719561046766,-305.3305634,0.00018899,2]
[330535352,1719561046776,-521.69920821,0.00018899,2]
[330535353,1719561046788,-523.7195419,0.00018899,2]
[330535354,1719561046798,-364.94342445,0.00018899,2]
[330535355,1719561046808,-164.51,0.000189,2]
[330535356,1719561046818,-622.59689453,0.00018919,2]
[330535357,1719561046836,-1263.2464365,0.00018919,2]
[330535358,1719561046846,-1758.53588891,0.00018919,2]
[330535359,1719561046856,-35707.9298,0.00018978,2]
[330535360,1719561046867,-69966.1345,0.00018978,2]
[330535361,1719561046878,-1000.0,0.00018978,2]
[330535362,1719561046890,-248219.4896,0.00018978,2]
[330535363,1719561046903,-5000.0,0.00018999,2]
[330535364,1719561046913,-170.0,0.00019,2]
[330535365,1719561046923,-2798.1186873,0.0001901,2]
[330535366,1719561046934,-220.21,0.00019068,2]
[330535367,1719561046947,-544.30071955,0.00019077,2]
[330535368,1719561046959,-500.0,0.00019078,2]
[330535369,1719561046970,-244009.8214,0.00019078,2]
[330535370,1719561046981,-1000.0,0.00019078,2]
[330535371,1719561046992,-166.84,0.0001908,2]
[330535372,1719561047002,-155.97353947,0.00019177,2]
[330535373,1719561047012,-709.20522128,0.00019177,2]
[330535374,1719561047024,-155.09814903,0.00019177,2]
[330535375,1719561047034,-907.53,0.00019178,2]
[330535376,1719561047044,-360.26902046,0.00019178,2]
[330535377,1719561047053,-500.0,0.00019178,2]
[330535378,1719561047062,-500.0,0.00019178,2]
[330535379,1719561047071,-500.0,0.00019178,2]
[330535380,1719561047081,-500.0,0.00019178,2]
[330535381,1719561047091,-500.0,0.00019178,2]
[330535382,1719561047100,-500.0,0.00019178,2]
[330535383,1719561047109,-309.46944821,0.00019178,2]
[330535384,1719561047118,-500.0,0.00019178,2]
[330535385,1719561047128,-500.0,0.00019178,2]
[330535386,1719561047138,-500.0,0.00019178,2]
[330535387,1719561047148,-500.0,0.00019178,2]
[330535388,1719561047161,-389.42250572,0.00019178,2]
[330535389,1719561047172,-500.0,0.00019178,2]
[330535390,1719561047182,-500.0,0.00019178,2]
[330535391,1719561047194,-500.0,0.00019178,2]
[330535392,1719561047206,-500.0,0.00019178,2]
[330535393,1719561047217,-2122.53,0.00019178,2]
[330535394,1719561047228,-1141.96,0.00019178,2]
[330535395,1719561047238,-500.0,0.00019178,2]
[330535396,1719561047248,-500.0,0.00019178,2]
[330535397,1719561047257,-500.0,0.00019178,2]
[330535398,1719561047267,-1690.68,0.00019178,2]
[330535399,1719561047277,-500.0,0.00019178,2]
[330535400,1719561047286,-235.11226042,0.00019178,2]
[330535401,1719561047295,-500.0,0.00019178,2]
[330535402,1719561047306,-870.65,0.00019178,2]
[330535403,1719561047316,-500.0,0.00019178,2]
[330535404,1719561047326,-500.0,0.00019178,2]
[330535405,1719561047337,-500.0,0.00019178,2]
[330535406,1719561047346,-500.0,0.00019178,2]
[330535407,1719561047357,-503.68,0.00019178,2]
[330535408,1719561047366,-500.0,0.00019178,2]
[330535409,1719561047375,-500.0,0.00019178,2]
[330535410,1719561047385,-500.0,0.00019178,2]
[330535411,1719561047394,-174.21191556,0.00019178,2]
[330535412,1719561047403,-500.0,0.00019178,2]
[330535413,1719561047411,-500.0,0.00019178,2]
[330535414,1719561047420,-500.0,0.00019178,2]
[330535415,1719561047429,-500.0,0.00019178,2]
[330535416,1719561047438,-500.0,0.00019178,2]
[330535417,1719561047448,-500.0,0.00019178,2]
[330535418,1719561047456,-500.0,0.00019178,2]
[330535419,1719561047465,-500.0,0.00019178,2]
[330535420,1719561047474,-500.0,0.00019178,2]
[330535421,1719561047482,-500.0,0.00019178,2]
[330535422,1719561047491,-500.0,0.00019178,2]
[330535423,1719561047500,-504.05,0.00019178,2]
[330535424,1719561047509,-846.93,0.00019178,2]
[330535425,1719561047518,-280.71270391,0.00019178,2]
[330535426,1719561047527,-500.0,0.00019178,2]
[330535427,1719561047535,-1149.92,0.00019178,2]
[330535428,1719561047544,-1397.93,0.00019178,2]
[330535429,1719561047553,-500.0,0.00019178,2]
[330535430,1719561047562,-500.0,0.00019178,2]
[330535431,1719561047570,-504.42914569,0.00019178,2]
[330535432,1719561047579,-1748.17,0.00019178,2]
[330535433,1719561047588,-500.0,0.00019178,2]
[330535434,1719561047598,-500.0,0.00019178,2]
[330535435,1719561047608,-542.84,0.00019178,2]
[330535436,1719561047617,-500.0,0.00019178,2]
[330535437,1719561047627,-693.92,0.00019178,2]
[330535438,1719561047636,-500.0,0.00019178,2]
[330535439,1719561047646,-500.0,0.00019178,2]
[330535440,1719561047656,-500.0,0.00019178,2]
[330535441,1719561047666,-500.0,0.00019178,2]
[330535442,1719561047675,-792.31,0.00019178,2]
[330535443,1719561047686,-500.0,0.00019178,2]
[330535444,1719561047695,-500.0,0.00019178,2]
[330535445,1719561047705,-500.0,0.00019178,2]
[330535446,1719561047715,-500.0,0.00019178,2]
[330535447,1719561047724,-1448.94,0.00019178,2]
[330535448,1719561047733,-500.0,0.00019178,2]
[330535449,1719561047743,-908.05,0.00019178,2]
[330535450,1719561047752,-500.0,0.00019178,2]
[330535451,1719561047767,-500.0,0.00019178,2]
[330535452,1719561047778,-500.0,0.00019178,2]
[330535453,1719561047788,-500.0,0.00019178,2]
[330535454,1719561047797,-500.0,0.00019178,2]
[330535455,1719561047806,-500.0,0.00019178,2]
[330535456,1719561047815,-500.0,0.00019178,2]
[330535457,1719561047829,-500.0,0.00019178,2]
[330535458,1719561047838,-1782.8,0.00019178,2]
[330535459,1719561047847,-856.16,0.00019178,2]
[330535460,1719561047857,-500.0,0.00019178,2]
[330535461,1719561047867,-1199.91,0.00019178,2]
[330535462,1719561047876,-539.97,0.00019178,2]
[330535463,1719561047885,-500.0,0.00019178,2]
[330535464,1719561047894,-500.0,0.00019178,2]
[330535465,1719561047904,-500.0,0.00019178,2]
[330535466,1719561047913,-500.0,0.00019178,2]
[330535467,1719561047923,-1183.51,0.00019178,2]
[330535468,1719561047932,-1192.41,0.00019178,2]
[330535469,1719561047943,-500.0,0.00019178,2]
[330535470,1719561047954,-2299.92,0.00019178,2]
[330535471,1719561047962,-654.32,0.00019178,2]
[330535472,1719561047971,-500.0,0.00019178,2]
[330535473,1719561047981,-500.0,0.00019178,2]
[330535474,1719561047992,-500.0,0.00019178,2]
[330535475,1719561048003,-673.16,0.00019178,2]
[330535476,1719561048013,-500.0,0.00019178,2]
[330535477,1719561048023,-1135.59,0.00019178,2]
[330535478,1719561048032,-718.46,0.00019178,2]
[330535479,1719561048041,-500.0,0.00019178,2]
[330535480,1719561048052,-500.0,0.00019178,2]
[330535481,1719561048061,-500.0,0.00019178,2]
[330535482,1719561048071,-500.0,0.00019178,2]
[330535483,1719561048080,-500.0,0.00019178,2]
[330535484,1719561048089,-500.0,0.00019178,2]
[330535485,1719561048098,-500.0,0.00019178,2]
[330535486,1719561048107,-828.5,0.00019178,2]
[330535487,1719561048119,-500.0,0.00019178,2]
[330535488,1719561048131,-500.0,0.00019178,2]
[330535489,1719561048141,-500.0,0.00019178,2]
[330535490,1719561048151,-500.0,0.00019178,2]
[330535491,1719561048162,-1470.46,0.00019178,2]
[330535492,1719561048171,-2500.0,0.00019178,3]
[330535493,1719561048181,-568.18,0.00019178,2]
[330535494,1719561048191,-1942.8,0.00019178,2]
[330535495,1719561048201,-500.0,0.00019178,2]
[330535496,1719561048210,-500.0,0.00019178,2]
[330535497,1719561048219,-500.0,0.00019178,2]
[330535498,1719561048228,-500.0,0.00019178,2]
[330535499,1719561048239,-559.8,0.00019178,2]
[330535500,1719561048250,-1013.31,0.00019178,2]
[330535501,1719561048259,-500.0,0.00019178,2]
[330535502,1719561048271,-500.0,0.00019178,2]
[330535503,1719561048281,-500.0,0.00019178,2]
[330535504,1719561048290,-500.0,0.00019178,2]
[330535505,1719561048301,-687.15,0.00019178,2]
[330535506,1719561048310,-557.81,0.00019178,2]
[330535507,1719561048320,-500.0,0.00019178,2]
[330535508,1719561048329,-1313.87,0.00019178,2]
[330535509,1719561048339,-500.0,0.00019178,2]
[330535510,1719561048348,-555.71,0.00019178,2]
[330535511,1719561048357,-1142.83,0.00019178,2]
[330535512,1719561048366,-606.98,0.00019178,2]
[330535513,1719561048375,-500.0,0.00019178,2]
[330535514,1719561048384,-1090.69,0.00019178,2]
[330535515,1719561048394,-500.0,0.00019178,2]
[330535516,1719561048403,-500.0,0.00019178,2]
[330535517,1719561048412,-741.97,0.00019178,2]
[330535518,1719561048421,-500.0,0.00019178,2]
[330535519,1719561048430,-500.0,0.00019178,2]
[330535520,1719561048439,-500.0,0.00019178,2]
[330535521,1719561048450,-500.0,0.00019178,2]
[330535522,1719561048459,-833.46,0.00019178,2]
[330535523,1719561048468,-500.0,0.00019178,2]
[330535524,1719561048478,-858.42,0.00019178,2]
[330535525,1719561048487,-784.18,0.00019178,2]
[330535526,1719561048496,-1104.3,0.00019178,2]
[330535527,1719561048506,-500.0,0.00019178,2]
[330535528,1719561048515,-676.3,0.00019178,2]
[330535529,1719561048524,-640.7,0.00019178,2]
[330535530,1719561048534,-547.64,0.00019178,2]
[330535531,1719561048543,-1509.32,0.00019178,2]
[330535532,1719561048552,-775.75,0.00019178,2]
[330535533,1719561048561,-500.0,0.00019178,2]
[330535534,1719561048571,-500.0,0.00019178,2]
[330535535,1719561048580,-500.0,0.00019178,2]
[330535536,1719561048589,-616.83612424,0.00019178,2]
[330535537,1719561048599,-500.0,0.00019178,2]
[330535538,1719561048608,-500.0,0.00019178,2]
[330535539,1719561048617,-500.0,0.00019178,2]
[330535540,1719561048626,-774.67,0.00019178,2]
[330535541,1719561048635,-1251.26,0.00019178,2]
[330535542,1719561048644,-500.0,0.00019178,2]
[330535543,1719561048653,-500.0,0.00019178,2]
[330535544,1719561048662,-1975.28,0.00019178,2]
[330535545,1719561048672,-500.0,0.00019178,2]
[330535546,1719561048681,-500.0,0.00019178,2]
[330535547,1719561048690,-704.42,0.00019178,2]
[330535548,1719561048702,-917.85,0.00019178,2]
[330535549,1719561048711,-500.0,0.00019178,2]
[330535550,1719561048720,-1651.77,0.00019178,2]
[330535551,1719561048729,-1425.82,0.00019178,2]
[330535552,1719561048738,-500.0,0.00019178,2]
[330535553,1719561048748,-500.0,0.00019178,2]
[330535554,1719561048757,-500.0,0.00019178,2]
[330535555,1719561048768,-500.0,0.00019178,2]
[330535556,1719561048779,-545.19,0.00019178,2]
[330535557,1719561048789,-575.69,0.00019178,2]
[330535558,1719561048798,-500.0,0.00019178,2]
[330535559,1719561048808,-500.0,0.00019178,2]
[330535560,1719561048819,-998.16,0.00019178,2]
[330535561,1719561048834,-500.0,0.00019178,2]
[330535562,1719561048843,-500.0,0.00019178,2]
[330535563,1719561048852,-500.0,0.00019178,2]
[330535564,1719561048861,-500.0,0.00019178,2]
[330535565,1719561048872,-500.0,0.00019178,2]
[330535566,1719561048882,-768.59,0.00019178,2]
[330535567,1719561048892,-586.61,0.00019178,2]
[330535568,1719561048902,-764.56,0.00019178,2]
[330535569,1719561048913,-618.73,0.00019178,2]
[330535570,1719561048924,-2391.81,0.00019178,2]
[330535571,1719561048933,-848.48,0.00019178,2]
[330535572,1719561048942,-500.0,0.00019178,2]
[330535573,1719561048952,-500.0,0.00019178,2]
[330535574,1719561048961,-500.0,0.00019178,2]
[330535575,1719561048970,-1272.64,0.00019178,2]
[330535576,1719561048979,-500.0,0.00019178,2]
[330535577,1719561048988,-8009.39,0.00019178,2]
[330535578,1719561048997,-688.17,0.00019178,2]
[330535579,1719561049007,-628.0,0.00019178,2]
[330535580,1719561049017,-652.19,0.00019178,2]
[330535581,1719561049026,-500.0,0.00019178,2]
[330535582,1719561049035,-500.0,0.00019178,2]
[330535583,1719561049045,-1144.92,0.00019178,2]
[330535584,1719561049054,-500.0,0.00019178,2]
[330535585,1719561049063,-500.0,0.00019178,2]
[330535586,1719561049073,-500.0,0.00019178,2]
[330535587,1719561049082,-3067.21,0.00019178,2]
[330535588,1719561049091,-1469.95,0.00019178,2]
[330535589,1719561049100,-937.69,0.00019178,2]
[330535590,1719561049111,-608.87,0.00019178,2]
[330535591,1719561049120,-530.38,0.00019178,2]
[330535592,1719561049129,-2389.09,0.00019178,2]
[330535593,1719561049138,-500.0,0.00019178,2]
[330535594,1719561049147,-698.09,0.00019178,2]
[330535595,1719561049156,-931.89,0.00019178,2]
[330535596,1719561049165,-1828.93,0.00019178,2]
[330535597,1719561049174,-500.0,0.00019178,2]
[330535598,1719561049183,-500.0,0.00019178,2]
[330535599,1719561049192,-198.66784056,0.00019178,2]
[330535600,1719561049202,-500.0,0.00019178,2]
[330535601,1719561049212,-2237.48,0.00019178,2]
[330535602,1719561049220,-809.41,0.00019178,2]
[330535603,1719561049229,-548.11,0.00019178,2]
[330535604,1719561049238,-1079.6,0.00019178,2]
[330535605,1719561049247,-844.19,0.00019178,2]
[330535606,1719561049256,-500.0,0.00019178,2]
[330535607,1719561049265,-1576.09,0.00019178,2]
[330535608,1719561049275,-500.0,0.00019178,2]
[330535609,1719561049285,-1489.92,0.00019178,2]
[330535610,1719561049294,-500.0,0.00019178,2]
[330535611,1719561049303,-500.0,0.00019178,2]
[330535612,1719561049313,-1957.19,0.00019178,2]
[330535613,1719561049323,-500.0,0.00019178,2]
[330535614,1719561049332,-500.0,0.00019178,2]
[330535615,1719561049341,-500.0,0.00019178,2]
[330535616,1719561049350,-500.0,0.00019178,2]
[330535617,1719561049361,-912.0,0.00019178,2]
[330535618,1719561049371,-500.0,0.00019178,2]
[330535619,1719561049380,-500.0,0.00019178,2]
[330535620,1719561049389,-500.0,0.00019178,2]
[330535621,1719561049399,-2356.49,0.00019178,2]
[330535622,1719561049409,-688.77,0.00019178,2]
[330535623,1719561049418,-500.0,0.00019178,2]
[330535624,1719561049428,-500.0,0.00019178,2]
[330535625,1719561049437,-500.0,0.00019178,2]
[330535626,1719561049449,-500.0,0.00019178,2]
[330535627,1719561049459,-2130.37,0.00019178,2]
[330535628,1719561049468,-500.0,0.00019178,2]
[330535629,1719561049477,-500.0,0.00019178,2]
[330535630,1719561049490,-393.51269429,0.00019178,2]
[330535631,1719561049499,-531.65,0.00019178,2]
[330535632,1719561049508,-838.95,0.00019178,2]
[330535633,1719561049518,-500.0,0.00019178,2]
[330535634,1719561049527,-596.16,0.00019178,2]
[330535635,1719561049537,-1793.14,0.00019178,2]
[330535636,1719561049546,-543.6,0.00019178,2]
[330535637,1719561049555,-2016.92,0.00019178,2]
[330535638,1719561049564,-1344.1,0.00019178,2]
[330535639,1719561049574,-500.0,0.00019178,2]
[330535640,1719561049583,-200.0,0.00019178,2]
[330535641,1719561049592,-500.0,0.00019178,2]
[330535642,1719561049601,-2804.61,0.00019178,2]
[330535643,1719561049611,-2335.31,0.00019178,2]
[330535644,1719561049620,-2999.18,0.00019178,2]
[330535645,1719561049630,-966.61,0.00019178,2]
[330535646,1719561049639,-500.0,0.00019178,2]
[330535647,1719561049651,-500.0,0.00019178,2]
[330535648,1719561049660,-1555.99,0.00019178,2]
[330535649,1719561049669,-500.0,0.00019178,2]
[330535650,1719561049678,-500.0,0.00019178,2]
[330535651,1719561049687,-1196.1,0.00019178,2]
[330535652,1719561049697,-1299.02,0.00019178,2]
[330535653,1719561049708,-1622.54,0.00019178,2]
[330535654,1719561049717,-1982.91,0.00019178,2]
[330535655,1719561049727,-580.04,0.00019178,2]
[330535656,1719561049736,-500.0,0.00019178,2]
[330535657,1719561049745,-585.72,0.00019178,2]
[330535658,1719561049754,-1835.49,0.00019178,2]
[330535659,1719561049763,-500.0,0.00019178,2]
[330535660,1719561049773,-829.04,0.00019178,2]
[330535661,1719561049782,-500.0,0.00019178,2]
[330535662,1719561049791,-461.58004395,0.00019178,2]
[330535663,1719561049801,-500.0,0.00019178,2]
[330535664,1719561049811,-500.0,0.00019178,2]
[330535665,1719561049819,-500.0,0.00019178,2]
[330535666,1719561049837,-500.0,0.00019178,2]
[330535667,1719561049846,-500.0,0.00019178,2]
[330535668,1719561049855,-500.0,0.00019178,2]
[330535669,1719561049865,-500.0,0.00019178,2]
[330535670,1719561049876,-500.0,0.00019178,2]
[330535671,1719561049886,-1053.06,0.00019178,2]
[330535672,1719561049895,-2025.35,0.00019178,2]
[330535673,1719561049904,-3299.83,0.00019178,2]
[330535674,1719561049916,-500.0,0.00019178,2]
[330535675,1719561049927,-926.48,0.00019178,2]
[330535676,1719561049937,-500.0,0.00019178,2]
[330535677,1719561049946,-2045.94,0.00019178,2]
[330535678,1719561049955,-520.99,0.00019178,2]
[330535679,1719561049964,-500.0,0.00019178,2]
[330535680,1719561049974,-500.0,0.00019178,2]
[330535681,1719561049984,-1125.69,0.00019178,2]
[330535682,1719561049994,-500.0,0.00019178,2]
[330535683,1719561050004,-652.91,0.00019178,2]
[330535684,1719561050015,-518.58,0.00019178,2]
[330535685,1719561050025,-515.76,0.00019178,2]
[330535686,1719561050035,-1218.63,0.00019178,2]
[330535687,1719561050046,-764.42,0.00019178,2]
[330535688,1719561050060,-500.0,0.00019178,2]
[330535689,1719561050075,-444.84702096,0.00019178,2]
[330535690,1719561050088,-807.73,0.00019178,2]
[330535691,1719561050100,-500.0,0.00019178,2]
[330535692,1719561050114,-500.0,0.00019178,2]
[330535693,1719561050128,-670.83,0.00019178,2]
[330535694,1719561050140,-500.0,0.00019178,2]
[330535695,1719561050151,-500.0,0.00019178,2]
[330535696,1719561050161,-500.0,0.00019178,2]
[330535697,1719561050172,-500.0,0.00019178,2]
[330535698,1719561050181,-717.38,0.00019178,2]
[330535699,1719561050190,-500.0,0.00019178,2]
[330535700,1719561050202,-1190.64,0.00019178,2]
[330535701,1719561050211,-1228.76,0.00019178,2]
[330535702,1719561050221,-500.0,0.00019178,2]
[330535703,1719561050231,-500.0,0.00019178,2]
[330535704,1719561050241,-500.0,0.00019178,2]
[330535705,1719561050250,-1204.53,0.00019178,2]
[330535706,1719561050259,-4412.5,0.00019178,2]
[330535707,1719561050270,-4811.88,0.00019178,2]
[330535708,1719561050279,-1337.55,0.00019178,2]
[330535709,1719561050289,-500.0,0.00019178,2]
[330535710,1719561050298,-1119.97,0.00019178,2]
[330535711,1719561050308,-500.0,0.00019178,2]
[330535712,1719561050317,-930.05,0.00019178,2]
[330535713,1719561050327,-1038.25,0.00019178,2]
[330535714,1719561050338,-500.0,0.00019178,2]
[330535715,1719561050347,-500.0,0.00019178,2]
[330535716,1719561050358,-500.0,0.00019178,2]
[330535717,1719561050367,-500.0,0.00019178,2]
[330535718,1719561050377,-500.0,0.00019178,2]
[330535719,1719561050386,-4473.58,0.00019178,2]
[330535720,1719561050396,-500.0,0.00019178,2]
[330535721,1719561050405,-689.91,0.00019178,2]
[330535722,1719561050414,-500.0,0.00019178,2]
[330535723,1719561050424,-500.0,0.00019178,2]
[330535724,1719561050433,-500.0,0.00019178,2]
[330535725,1719561050443,-500.0,0.00019178,2]
[330535726,1719561050454,-500.0,0.00019178,2]
[330535727,1719561050464,-500.0,0.00019178,2]
[330535728,1719561050473,-816.16,0.00019178,2]
[330535729,1719561050482,-2445.0,0.00019178,2]
[330535730,1719561050491,-500.0,0.00019178,2]